bitfinex-derivatives/quotes_ETHF0:USTF0_20251107
["timestamp","ask_amount","ask_price","bid_price","bid_amount"]
[1762487704450,0.48464,3344.6,3344.5,0.3754]
[1762487705154,0.48464,3344.6,3344.5,0.3719]
[1762487705953,0.72364,3344.6,3344.5,0.3719]
[1762487706155,0.239,3344.5,3344.4,8.936]
[1762487706655,0.48469,3344.2,3344.0,0.1398]
[1762487706848,0.239,3344.1,3344.0,0.1398]
[1762487707054,0.239,3344.1,3344.0,9.0738]
[1762487707358,0.72372,3344.0,3343.9,0.00448156]
[1762487708058,0.72372,3344.0,3343.9,0.23658156]
[1762487708059,0.48472,3344.0,3343.9,0.23658156]
[1762487708253,0.48472,3344.0,3343.9,0.72131156]
[1762487708960,3.2078,3344.7,3344.0,0.63011]
[1762487709151,0.48469,3344.2,3344.1,0.7168]
[1762487709554,0.05,3344.5,3343.9,0.23658156]
[1762487709753,0.4847,3344.1,3344.0,9.1465]
[1762487709954,0.4847,3344.1,3344.0,9.63122]
[1762487710156,0.4847,3344.1,3344.0,9.1465]
[1762487710665,0.4847,3344.1,3344.0,9.63122]
[1762487710866,3.69247,3344.3,3344.2,0.2321]
[1762487711061,3.2078,3344.7,3344.3,0.48467]
[1762487711968,0.48469,3344.2,3344.1,0.71679]
[1762487713164,0.48469,3344.2,3344.1,2.92425745]
[1762487713365,0.48469,3344.2,3344.1,11.85425745]
[1762487713566,0.48469,3344.2,3344.1,11.85225745]
[1762487714271,0.48469,3344.2,3344.1,2.92425745]
[1762487714473,0.72369,3344.2,3344.1,2.92426745]
[1762487714664,3.2078,3344.7,3344.1,11.13446745]
[1762487714858,3.69242,3344.7,3344.5,0.3775]
[1762487715058,3.69242,3344.7,3344.6,9.64473]
[1762487715364,0.48462,3344.7,3344.6,9.64473]
[1762487716369,0.72362,3344.7,3344.6,8.928]
[1762487716565,0.72363,3344.6,3344.5,0.63004]
[1762487716772,0.72363,3344.6,3344.5,9.55704]
[1762487716970,0.72363,3344.6,3344.5,0.1454]
[1762487717171,0.72363,3344.6,3344.5,9.0724]
[1762487717360,0.72363,3344.6,3344.5,0.1454]
[1762487717565,0.48467,3344.3,3344.2,2.20746745]
[1762487717764,0.48467,3344.3,3344.2,11.13846745]
[1762487717972,0.48467,3344.3,3344.2,2.20746745]
[1762487718370,0.48467,3344.3,3344.2,11.13746745]
[1762487718773,0.48467,3344.3,3344.2,8.93]
[1762487719270,0.48469,3344.2,3344.1,2.92425745]
[1762487719473,0.48469,3344.2,3344.1,11.85325745]
[1762487720574,0.48469,3344.2,3344.1,11.85225745]
[1762487721466,0.48469,3344.2,3344.1,11.85025745]
[1762487721668,0.48469,3344.2,3344.1,9.64279]
[1762487721971,0.48469,3344.2,3344.1,0.71679]
[1762487722172,0.48469,3344.2,3344.1,9.64079]
[1762487723274,0.48469,3344.2,3344.1,0.71679]
[1762487723474,0.48469,3344.2,3344.1,9.63979]
[1762487725574,0.48467,3344.4,3344.3,0.71676]
[1762487725778,0.72367,3344.4,3344.3,9.63676]
[1762487726676,0.72367,3344.4,3344.3,9.1521]
[1762487727270,0.239,3344.0,3343.9,0.00448156]
[1762487727464,0.72372,3344.0,3343.9,8.92248156]
[1762487727869,0.72372,3344.0,3343.9,0.00448156]
[1762487728168,0.72372,3344.0,3343.9,7.99848156]
[1762487728772,0.72372,3344.0,3343.9,0.23658156]
[1762487728977,0.48472,3344.0,3343.9,9.64031156]
[1762487729179,3.69249,3344.2,3344.1,0.2321]
[1762487732585,3.69249,3344.2,3344.1,9.1501]
[1762487733474,3.2078,3344.2,3344.1,9.6348]
[1762487734173,0.48466,3344.4,3344.3,0.71677]
[1762487734373,3.2078,3344.7,3344.6,0.2321]
[1762487734573,3.2078,3345.1,3345.0,0.3775]
[1762487735178,3.69236,3345.1,3345.0,0.3775]
[1762487735785,3.94146,3345.1,3345.0,0.1454]
[1762487736075,0.48462,3344.7,3344.6,8.918]
[1762487736281,0.48462,3344.7,3344.6,9.1512]
[1762487736670,0.48462,3344.7,3344.6,0.2332]
[1762487736875,0.48462,3344.7,3344.6,9.1512]
[1762487737481,0.48462,3344.7,3344.6,0.71783]
[1762487737684,0.48462,3344.7,3344.6,9.63583]
[1762487737982,3.69236,3345.1,3345.0,0.72537]
[1762487738178,3.69236,3345.1,3345.0,0.3842]
[1762487739080,3.69236,3345.1,3345.0,0.86877]
[1762487739786,3.2078,3345.1,3345.0,0.86877]
[1762487740182,3.69448774,3345.5,3345.4,0.72531]
[1762487740380,3.20998774,3345.5,3345.4,0.72531]
[1762487742875,0.2418,3344.5,3344.2,0.48468]
[1762487743080,0.48469,3344.2,3344.1,0.2408]
[1762487743582,0.7265,3344.1,3344.0,0.1454]
[1762487744591,0.2418,3344.0,3343.9,8.92448156]
[1762487744881,0.2418,3344.0,3343.9,0.00448156]
[1762487745682,0.4847,3344.1,3344.0,0.1434]
[1762487745880,0.7265,3344.1,3344.0,0.1434]
[1762487746290,0.2418,3344.0,3343.9,0.00448156]
[1762487747488,0.7265,3344.1,3344.0,0.3842]
[1762487747887,0.2418,3344.0,3343.9,0.00448156]
[1762487748990,0.3707,3344.0,3343.9,0.00448156]
[1762487749783,0.2418,3344.0,3343.9,0.00448156]
[1762487751088,0.72652,3344.0,3343.9,0.00448156]
[1762487751904,0.85542,3344.0,3343.9,0.00448156]
[1762487752188,0.72652,3344.0,3343.9,0.00448156]
[1762487753281,0.72652,3344.0,3343.9,0.73001156]
[1762487753690,0.85542,3344.0,3343.9,0.00448156]
[1762487756087,0.72652,3344.0,3343.9,0.00448156]
[1762487756784,0.48472,3344.0,3343.9,0.24528156]
[1762487756984,0.72652,3344.0,3343.9,0.24528156]
[1762487757182,0.85542,3344.0,3343.9,0.00448156]
[1762487758788,0.72662,3343.3,3343.2,0.0033198]
[1762487758991,3.2078,3343.3,3342.3,3.2078]
[1762487759297,0.1077,3343.5,3342.6,0.72572]
[1762487759298,0.48491,3342.7,3342.6,0.72572]
[1762487759496,3.2078,3342.9,3342.8,0.2408]
[1762487759989,3.69584607,3342.9,3342.8,0.2408]
[1762487760189,3.21096607,3342.9,3342.8,0.24349644]
[1762487760986,3.21096607,3342.9,3342.8,0.72838644]
[1762487761593,0.00316607,3342.9,3342.8,3.93618644]
[1762487761892,0.00448156,3343.2,3343.1,0.72565]
[1762487762788,0.00733226,3343.2,3343.1,0.72565]
[1762487763591,0.72665,3343.1,3343.0,0.1434]
[1762487764295,0.72668,3342.9,3342.8,0.00269644]
[1762487765392,0.00733226,3343.2,3343.1,0.2307]
[1762487765989,0.00733226,3343.2,3343.1,0.71555]
[1762487769896,3.2078,3343.7,3343.6,0.71548]
[1762487770093,0.48472,3344.0,3343.9,0.48473]
[1762487770294,3.6925,3344.1,3344.0,0.86212]
[1762487770494,3.6925,3344.1,3344.0,0.3774]
[1762487770691,3.9216,3344.1,3344.0,0.86212]
[1762487770891,3.92379168,3344.1,3344.0,0.86212]
[1762487771701,3.92379168,3344.1,3344.0,0.3774]
[1762487772104,0.48473,3343.9,3343.8,0.48473]
[1762487772401,0.71383,3343.9,3343.8,0.48475]
[1762487773299,0.2291,3343.9,3343.8,0.48475]
[1762487773605,0.71385,3343.8,3343.7,0.00448156]
[1762487775095,0.48473,3344.0,3343.9,0.48473]
[1762487775303,0.48473,3344.0,3343.9,0.71543]
[1762487776906,3.20999168,3344.1,3344.0,0.86212]
[1762487778607,3.69469168,3344.1,3344.0,0.86212]
[1762487779707,0.00219168,3344.1,3344.0,0.86212]
[1762487785906,0.00219168,3344.1,3344.0,3.06958745]
[1762487786110,3.2078,3344.9,3344.8,0.7153]
[1762487786309,0.48454,3345.2,3345.1,0.71526]
[1762487786702,3.2078,3345.3,3345.2,0.71524]
[1762487787213,3.21126698,3345.3,3345.2,0.71816709]
[1762487787513,3.69579698,3345.3,3345.2,0.71816709]
[1762487787705,3.21126698,3345.3,3345.2,0.71816709]
[1762487788109,0.00346698,3345.3,3345.2,0.71816709]
[1762487789313,0.00346698,3345.3,3345.2,9.63516709]
[1762487791112,0.00448156,3345.6,3345.5,0.8619]
[1762487792218,0.00748916,3345.6,3345.5,0.8619]
[1762487792607,0.00748916,3345.6,3345.5,9.3999]
[1762487793112,0.00748916,3345.6,3345.5,11.60736745]
[1762487793308,0.49197916,3345.6,3345.5,3.06936745]
[1762487793511,0.00748916,3345.6,3345.5,3.06936745]
[1762487793709,0.00748916,3345.6,3345.5,11.98536745]
[1762487796315,3.69215,3346.5,3346.4,0.2509]
[1762487796617,0.1102,3347.5,3346.8,0.2509]
[1762487796618,3.2078,3346.9,3346.8,0.2509]
[1762487797016,0.48431,3346.8,3346.5,0.1421]
[1762487797213,0.48434,3346.7,3346.6,0.48434]
[1762487797414,0.25598823,3346.7,3346.6,0.48434]
[1762487797619,0.00238823,3346.7,3346.6,0.73524]
[1762487801924,0.00238823,3346.7,3346.6,9.64824]
[1762487802124,0.00238823,3346.7,3346.6,0.73524]
[1762487802324,0.00238823,3346.7,3346.6,9.64824]
[1762487804423,0.48671823,3346.7,3346.6,0.2509]
[1762487804624,0.72734,3346.6,3346.5,7.72445]
[1762487804816,0.48434,3346.6,3346.5,7.96905]
[1762487805215,0.243,3346.6,3346.5,0.1421]
[1762487805522,0.72737,3346.4,3346.3,0.48886156]
[1762487806418,0.72737,3346.4,3346.3,0.00448156]
[1762487807027,0.72737,3346.4,3346.3,0.73346156]
[1762487807419,0.48437,3346.4,3346.3,0.73346156]
[1762487808422,0.72737,3346.4,3346.3,0.00448156]
[1762487820737,0.72737,3346.4,3346.3,0.48886156]
[1762487820928,0.72737,3346.4,3346.3,0.00448156]
[1762487821631,0.72737,3346.4,3346.3,0.00368156]
[1762487822230,1.55935533,3346.4,3346.3,0.00368156]
[1762487822938,0.72753,3345.3,3344.5,3.3523]
[1762487823132,3.93533,3345.3,3344.8,8.911]
[1762487823329,3.93533,3345.3,3344.9,0.48457]
[1762487823531,3.93533,3345.3,3345.0,0.63127]
[1762487824637,3.93533,3345.3,3345.1,0.48456]
[1762487824936,3.93533,3345.3,3345.2,0.73206709]
[1762487825735,0.72753,3345.3,3345.2,0.73206709]
[1762487826731,0.72753,3345.3,3345.2,0.24752709]
[1762487826932,3.93533,3345.3,3345.2,0.00292709]
[1762487828539,3.69233,3345.3,3345.2,0.23412709]
[1762487828737,3.69233,3345.3,3345.2,0.71866709]
[1762487829126,3.2078,3345.3,3345.2,0.71866709]
[1762487829333,3.69233,3345.3,3345.2,0.71866709]
[1762487829626,0.48453,3345.3,3345.2,0.71866709]
[1762487830234,0.73448,3345.6,3345.5,0.149]
[1762487830435,0.73448,3345.6,3345.5,0.3802]
[1762487830739,0.73448,3345.6,3345.5,0.8647]
[1762487830935,0.48448,3345.6,3345.5,0.8647]
[1762487831239,0.48448,3345.6,3345.5,0.3802]
[1762487831432,3.2078,3345.7,3345.2,0.00292709]
[1762487831639,0.48453,3345.3,3345.2,0.23412709]
[1762487831832,3.69233,3345.3,3345.2,0.23412709]
[1762487832035,3.2078,3345.7,3345.2,0.23412709]
[1762487832237,0.25,3345.4,3345.2,0.00292709]
[1762487832537,3.2078,3345.7,3345.3,0.48453]
[1762487832737,0.48448,3345.6,3345.5,0.3802]
[1762487832943,0.73448,3345.6,3345.5,0.149]
[1762487833131,0.73448,3345.6,3345.5,0.3802]
[1762487833642,0.48448,3345.6,3345.5,0.3802]
[1762487834341,0.48448,3345.6,3345.5,0.8647]
[1762487834535,0.48448,3345.6,3345.5,0.3802]
[1762487834729,0.73457,3345.0,3344.9,0.00448156]
[1762487835635,0.73457,3345.0,3344.9,0.00721764]
[1762487835938,0.86567,3345.0,3344.9,0.00721764]
[1762487839938,3.2078,3345.1,3344.9,0.49180764]
[1762487840145,0.48457,3345.0,3344.9,0.23841764]
[1762487840442,0.48457,3345.0,3344.9,0.72300764]
[1762487840641,0.73457,3345.0,3344.9,0.72300764]
[1762487841043,0.48457,3345.0,3344.9,0.72300764]
[1762487841435,0.48455,3345.2,3345.1,0.48454]
[1762487841642,0.00448156,3345.3,3345.2,0.71574]
[1762487843349,0.48457,3345.0,3344.9,0.00721764]
[1762487843550,0.73457,3345.0,3344.9,0.00721764]
[1762487846641,0.73457,3345.0,3344.9,0.49180764]
[1762487847540,0.48901156,3345.3,3345.2,0.2312]
[1762487847745,0.00448156,3345.3,3345.2,0.71574]
[1762487851647,3.69224,3345.9,3345.8,0.71566]
[1762487852050,3.2078,3345.9,3345.8,0.71566]
[1762487852757,0.48442,3346.1,3346.0,0.86463]
[1762487853256,0.73442,3346.1,3346.0,0.149]
[1762487853662,0.73442,3346.1,3346.0,0.63343]
[1762487854863,0.00448156,3346.2,3346.1,0.73541]
[1762487855051,0.48888156,3346.2,3346.1,0.73541]
[1762487855556,0.00448156,3346.2,3346.1,0.73541]
[1762487855949,0.48888156,3346.2,3346.1,0.73541]
[1762487856154,0.00448156,3346.2,3346.1,0.73541]
[1762487858358,0.48888156,3346.2,3346.1,0.73541]
[1762487858559,0.00448156,3346.2,3346.1,0.73541]
[1762487861356,0.00448156,3346.2,3346.1,9.64441]
[1762487862458,0.00448156,3346.2,3346.1,9.64341]
[1762487865161,0.00448156,3346.2,3346.1,11.85087745]
[1762487865467,0.00238823,3346.7,3346.6,0.72784]
[1762487866463,0.00238823,3346.7,3346.6,2.93530745]
[1762487868167,0.23218823,3346.7,3346.6,2.93530745]
[1762487868466,0.23218823,3346.7,3346.6,2.69180745]
[1762487869459,0.23218823,3346.7,3346.6,2.93530745]
[1762487869960,0.71651823,3346.7,3346.6,2.93530745]
[1762487870359,0.23218823,3346.7,3346.6,2.93530745]
[1762487871067,0.71651823,3346.7,3346.6,2.69180745]
[1762487871268,0.23218823,3346.7,3346.6,0.48434]
[1762487871565,0.2298,3346.5,3346.4,2.20746745]
[1762487872563,0.2298,3346.5,3346.4,2.69182745]
[1762487872564,0.71415,3346.5,3346.4,2.69182745]
[1762487877171,0.71415,3346.5,3346.4,0.48436]
[1762487877764,0.48439,3346.3,3346.2,0.72789]
[1762487877973,0.48437,3346.4,3346.3,0.48436]
[1762487878174,0.48437,3346.4,3346.3,0.72786]
[1762487879579,0.48436,3346.5,3346.4,0.48434]
[1762487880175,3.92432823,3346.7,3346.6,0.48434]
[1762487880980,3.43998823,3346.7,3346.6,0.48434]
[1762487881380,3.43998823,3346.7,3346.6,0.72784]
[1762487881582,3.21018823,3346.7,3346.6,0.72784]
[1762487881883,0.00238823,3346.7,3346.6,0.72784]
[1762487882275,3.69451823,3346.7,3346.6,0.2435]
[1762487882576,3.92431823,3346.7,3346.6,0.2435]
[1762487882979,3.43998823,3346.7,3346.6,0.72784]
[1762487883182,3.21018823,3346.7,3346.6,0.72784]
[1762487883480,3.69451823,3346.7,3346.6,0.72784]
[1762487884080,3.21018823,3346.7,3346.6,0.72784]
[1762487885679,0.00238823,3346.7,3346.6,0.72784]
[1762487886585,0.48671823,3346.7,3346.6,0.72784]
[1762487886775,0.00238823,3346.7,3346.6,0.72784]
[1762487888184,0.00238823,3346.7,3346.6,9.63084]
[1762487889687,0.48671823,3346.7,3346.6,9.63084]
[1762487889988,0.00238823,3346.7,3346.6,9.63084]
[1762487892690,0.48671823,3346.7,3346.6,9.63084]
[1762487892983,0.00238823,3346.7,3346.6,9.63084]
[1762487894184,3.92841823,3346.7,3346.6,9.62884]
[1762487894882,3.69451823,3346.7,3346.6,9.62884]
[1762487896986,0.00238823,3346.7,3346.6,9.62884]
[1762487899492,0.00238823,3346.7,3346.6,0.72784]
[1762487899695,0.00238823,3346.7,3346.6,9.62884]
[1762487902591,0.1153,3347.5,3346.6,9.62884]
[1762487902592,2.09503986,3348.7,3347.5,0.0803]
[1762487902793,0.138,3349.5,3349.0,0.2512]
[1762487903100,0.2339,3349.1,3349.0,3.8692]
[1762487903400,0.48394,3349.4,3349.2,0.2512]
[1762487903586,0.2339,3349.3,3349.2,0.00349793]
[1762487905397,0.2339,3349.1,3349.0,0.00448156]
[1762487906286,0.2339,3349.1,3349.0,0.00818534]
[1762487910194,0.71799,3348.3,3348.2,3.2078]
[1762487911094,0.71799,3348.3,3348.2,3.21095641]
[1762487911992,0.71799,3348.3,3348.2,0.00315641]
[1762487918997,0.1406,3347.5,3347.3,3.2078]
[1762487919202,0.86082,3347.5,3347.4,0.48422]
[1762487919605,0.3766,3347.0,3346.9,3.69209]
[1762487919996,0.37924473,3347.0,3346.9,3.69570308]
[1762487920396,0.37924473,3347.0,3346.9,3.92530308]
[1762487920602,0.86352473,3347.0,3346.9,3.92530308]
[1762487923307,0.00264473,3347.0,3346.9,3.92530308]
[1762487923706,0.48692473,3347.0,3346.9,3.92530308]
[1762487924608,0.00264473,3347.0,3346.9,3.92530308]
[1762487925802,0.86352473,3347.0,3346.9,3.21141308]
[1762487926006,0.7204,3346.2,3346.1,3.2078]
[1762487926299,0.72046,3345.8,3345.7,3.92186]
[1762487926506,0.236,3345.8,3345.7,3.92186]
[1762487926709,0.1406,3346.0,3345.7,3.92186]
[1762487926901,0.1406,3346.0,3345.8,0.48445]
[1762487927096,0.236,3345.9,3345.8,0.48445]
[1762487927606,0.48446,3345.8,3345.7,3.43996961]
[1762487927801,0.72046,3345.8,3345.7,3.43996961]
[1762487928005,0.72046,3345.8,3345.7,3.21036961]
[1762487928700,0.72046,3345.8,3345.7,3.43996961]
[1762487929102,0.236,3345.9,3345.8,0.48446]
[1762487930602,0.236,3345.9,3345.8,0.71406]
[1762487932611,0.236,3345.9,3345.8,0.2296]
[1762487933206,0.48438,3346.3,3346.2,0.2296]
[1762487933410,0.48436,3346.5,3346.4,0.2296]
[1762487933910,0.48436,3346.5,3346.4,0.71397]
[1762487934915,0.48436,3346.5,3346.4,0.2296]
[1762487935108,0.48436,3346.5,3346.4,0.71397]
[1762487935303,0.48436,3346.5,3346.2,0.48438]
[1762487935304,0.48437,3346.4,3346.2,0.48438]
[1762487935603,0.7204,3346.2,3346.1,3.2078]
[1762487938314,0.7204,3346.2,3346.1,3.4374]
[1762487939117,0.7204,3346.2,3345.7,0.00256961]
[1762487939118,0.72046,3345.8,3345.7,0.00256961]
[1762487940210,0.72046,3345.8,3345.7,0.23216961]
[1762487940418,0.236,3345.8,3345.7,0.23216961]
[1762487940713,0.48446,3345.8,3345.7,3.92442961]
[1762487941417,0.48441,3346.1,3346.0,0.2296]
[1762487941609,0.1406,3346.5,3346.0,0.71403]
[1762487941814,0.1406,3346.5,3346.0,0.71401]
[1762487942014,0.48441,3346.1,3346.0,0.2296]
[1762487943508,0.72041,3346.1,3346.0,0.2296]
[1762487944618,0.72041,3346.1,3346.0,0.71403]
[1762487944818,0.236,3346.1,3346.0,0.71403]
[1762487945218,0.72041,3346.1,3346.0,0.2296]
[1762487946121,0.1406,3346.5,3346.0,0.2296]
[1762487946320,0.48441,3346.2,3346.1,0.722]
[1762487947020,0.72291,3346.2,3346.1,0.722]
[1762487947221,0.48444,3346.0,3345.9,0.2376]
[1762487947613,0.4844,3346.2,3346.1,0.4844]
[1762487947817,0.7229,3346.2,3346.1,0.4844]
[1762487948111,0.48443,3346.0,3345.9,0.2376]
[1762487948510,0.48443,3346.0,3345.9,0.72204]
[1762487949417,0.72296,3345.8,3345.7,3.21036961]
[1762487949925,0.48446,3345.8,3345.7,3.44796961]
[1762487950121,0.72296,3345.8,3345.7,3.44796961]
[1762487951319,0.48444,3345.9,3345.8,0.72205]
[1762487951520,0.48444,3345.9,3345.8,0.2376]
[1762487952326,0.48444,3345.9,3345.8,0.72206]
[1762487953521,0.72294,3345.9,3345.8,0.2376]
[1762487953719,0.48444,3345.9,3345.8,0.72206]
[1762487955631,0.48443,3346.1,3346.0,0.8633]
[1762487957026,0.48434,3346.6,3346.5,0.3789]
[1762487957733,0.48432,3346.8,3346.7,0.72192]
[1762487958027,0.72287,3346.4,3346.3,3.4454]
[1762487958226,0.48437,3346.4,3346.3,3.4454]
[1762487958426,0.72287,3346.4,3346.3,3.4454]
[1762487958630,0.72287,3346.4,3346.3,3.92978]
[1762487959128,0.48437,3346.4,3346.3,3.92978]
[1762487960031,0.63556,3346.5,3346.4,0.72197]
[1762487960428,0.63556,3346.5,3346.4,0.2376]
[1762487961631,0.63556,3346.5,3346.4,0.72197]
[1762487963131,0.48436,3346.5,3346.4,0.72197]
[1762487963331,0.2385,3346.9,3346.8,0.2376]
[1762487963533,0.7228,3346.9,3346.8,0.2376]
[1762487964436,0.00264473,3347.0,3346.9,0.7219]
[1762487964631,0.72542473,3347.0,3346.9,0.2376]
[1762487964828,0.72281,3346.8,3346.7,3.2078]
[1762487965033,0.72288,3346.4,3346.3,0.48438]
[1762487965234,0.72288,3346.4,3346.3,0.72198]
[1762487965434,0.48438,3346.4,3346.3,0.72198]
[1762487966632,0.48438,3346.4,3346.3,0.2376]
[1762487966832,0.72288,3346.4,3346.3,0.72198]
[1762487967036,0.72288,3346.4,3346.3,0.48438]
[1762487969336,0.48437,3346.5,3346.4,0.72196]
[1762487969531,0.48434,3346.6,3346.5,0.86325]
[1762487969926,3.36164473,3347.0,3346.7,0.2376]
[1762487970132,3.36164473,3347.0,3346.9,0.2376]
[1762487970338,0.48431,3346.8,3346.7,0.48432]
[1762487970535,0.48431,3346.8,3346.7,0.72192]
[1762487970738,0.48431,3346.8,3346.7,0.2376]
[1762487971630,0.48431,3346.8,3346.7,0.72193]
[1762487972434,0.4843,3346.9,3346.8,0.72191]
[1762487973637,0.48694473,3347.0,3346.9,0.7219]
[1762487973834,0.72544473,3347.0,3346.9,0.2376]
[1762487974037,0.72283,3346.7,3346.6,3.2078]
[1762487974441,0.72283,3346.7,3346.6,3.4454]
[1762487974634,0.72283,3346.7,3346.6,3.92974]
[1762487975342,0.72283,3346.7,3346.6,3.4454]
[1762487975537,0.72283,3346.7,3346.6,3.2078]
[1762487976043,0.87355,3346.5,3346.4,2.20746745]
[1762487978240,0.87355,3346.5,3345.7,2.68982525]
[1762487978241,0.231,3345.9,3345.8,3.2078]
[1762487978445,0.71544,3345.9,3345.8,3.2078]
[1762487979342,0.71544,3345.9,3345.8,3.69226]
[1762487979544,0.71544,3345.9,3345.8,3.2078]
[1762487980442,0.48446,3345.8,3345.7,0.00256961]
[1762487980840,0.71546,3345.8,3345.7,0.00256961]
[1762487987845,3.92326,3345.8,3345.7,0.00256961]
[1762487988048,0.71548,3345.6,3345.5,0.00448156]
[1762487989051,0.71548,3345.6,3345.5,0.00719006]
[1762487989349,0.86537,3345.0,3344.9,3.2078]
[1762487990147,0.48463,3344.6,3344.5,3.5966]
[1762487990347,0.48812044,3344.6,3344.5,3.60009835]
[1762487991343,0.00349044,3344.6,3344.5,12.08473835]
[1762487991541,0.00349044,3344.6,3344.5,4.08473835]
[1762487996246,0.48812044,3344.6,3344.5,4.08473835]
[1762487996446,0.00349044,3344.6,3344.5,4.08473835]
[1762487996647,0.48812044,3344.6,3344.5,4.08473835]
[1762487998254,0.00349044,3344.6,3344.5,4.08473835]
[1762488001057,0.48812044,3344.6,3344.5,4.08473835]
[1762488001252,0.00349044,3344.6,3344.5,4.08473835]
[1762488001645,3.2078,3345.7,3345.4,0.2475]
[1762488001951,3.2078,3346.1,3345.6,0.2475]
[1762488002154,0.48454,3345.2,3345.1,3.93986]
[1762488002557,0.71554,3345.2,3345.1,3.4553]
[1762488002760,0.71896374,3345.2,3345.1,3.93986]
[1762488003056,0.00342374,3345.2,3345.1,3.93986]
[1762488003357,0.48796374,3345.2,3345.1,3.93986]
[1762488003858,0.00342374,3345.2,3345.1,3.93986]
[1762488005354,0.00448156,3345.5,3345.4,0.72111]
[1762488005555,0.00448156,3345.5,3345.4,9.62011]
[1762488006264,1.05985547,3348.0,3346.4,0.2366]
[1762488006449,0.78443478,3347.9,3347.7,3.2078]
[1762488006646,0.235,3347.8,3347.7,3.2078]
[1762488006845,0.235,3347.8,3347.0,0.1413]
[1762488007057,0.1495,3348.0,3347.0,0.1413]
[1762488007058,3.3573,3348.0,3347.2,3.2078]
[1762488007258,0.235,3347.3,3347.2,3.21046261]
[1762488008155,0.86878,3347.0,3346.9,0.00448156]
[1762488008353,0.1495,3346.5,3346.0,0.62982]
[1762488008561,0.1495,3346.5,3345.9,3.2078]
[1762488008761,0.63386,3346.5,3345.9,3.2078]
[1762488009062,0.48438,3346.4,3345.9,3.2078]
[1762488009364,0.48438,3346.4,3346.1,0.48441]
[1762488009763,0.48439,3346.3,3346.0,0.63132]
[1762488009964,0.48439,3346.3,3346.0,0.48442]
[1762488010359,0.4844,3346.2,3345.9,3.21121565]
[1762488010668,0.48441,3346.2,3345.9,3.69565565]
[1762488010854,0.3845,3346.0,3345.9,3.21121565]
[1762488011261,0.3845,3346.0,3345.9,0.00341565]
[1762488011661,0.48452,3345.4,3345.1,3.69235]
[1762488011855,0.48454,3345.2,3345.1,3.2078]
[1762488012062,0.71954,3345.2,3345.1,3.2078]
[1762488012662,0.72269566,3345.2,3345.1,3.21007239]
[1762488012850,0.23815566,3345.2,3345.1,3.21007239]
[1762488013161,0.00315566,3345.2,3345.1,3.44667239]
[1762488013756,0.23815566,3345.2,3345.1,3.21007239]
[1762488014353,0.23815566,3345.2,3345.1,0.00227239]
[1762488015665,0.235,3344.9,3344.3,3.2078]
[1762488015965,0.235,3344.4,3344.3,3.2078]
[1762488016566,0.235,3344.4,3344.3,3.21031731]
[1762488017863,0.48457,3345.0,3344.9,0.72118]
[1762488018068,0.48770566,3345.2,3345.0,0.48457]
[1762488018364,0.00315566,3345.2,3345.1,3.4444]
[1762488021170,0.00315566,3345.2,3344.7,0.4846]
[1762488021365,0.48461,3344.8,3344.6,3.2078]
[1762488021768,0.235,3344.7,3344.6,3.2078]
[1762488022561,0.71966,3344.4,3344.3,0.00251731]
[1762488026466,0.48466,3344.4,3344.3,0.00251731]
[1762488026874,0.48486,3343.0,3342.9,6.40556672]
[1762488027068,0.48486,3343.0,3342.9,0.2366]
[1762488027377,0.48485,3343.1,3343.0,0.2366]
[1762488027980,0.48485,3343.1,3343.0,0.23877254]
[1762488028365,0.71985,3343.1,3343.0,0.00217254]
[1762488029974,0.48485,3343.1,3343.0,0.23877254]
[1762488030174,0.71991,3342.7,3342.6,3.2078]
[1762488030472,0.48496,3342.4,3342.3,0.2366]
[1762488031171,0.48808092,3342.4,3342.3,0.23887145]
[1762488031469,0.00312092,3342.4,3342.3,0.23887145]
[1762488033875,0.00312092,3342.4,3342.3,0.72383145]
[1762488034177,0.48488,3342.9,3342.8,0.72148]
[1762488034178,0.48489,3342.9,3342.8,0.72148]
[1762488034471,0.00448156,3343.3,3342.5,0.1469]
[1762488034472,0.00448156,3343.3,3342.7,3.2078]
[1762488034672,0.48485,3343.1,3343.0,0.72146]
[1762488035172,0.48779425,3343.1,3343.0,0.72146]
[1762488036175,0.48779425,3343.1,3343.0,0.2366]
[1762488037381,0.48779425,3343.1,3343.0,0.72146]
[1762488037875,0.48779425,3343.1,3343.0,0.2366]
[1762488038069,0.48489,3342.8,3342.7,3.4435]
[1762488038275,0.48489,3342.8,3342.7,3.92841]
[1762488038578,0.48489,3342.8,3342.7,3.4435]
[1762488038980,0.71399,3342.8,3342.7,3.4435]
[1762488039276,0.48494,3342.5,3342.4,0.72065]
[1762488039764,0.48492,3342.6,3342.5,0.48493]
[1762488039970,0.1432,3343.0,3342.6,0.72062]
[1762488040164,0.4849,3342.8,3342.7,0.7206]
[1762488040471,0.48488,3342.9,3342.8,0.2357]
[1762488040682,0.71398,3342.9,3342.8,0.2357]
[1762488041073,0.71398,3342.9,3342.8,0.72059]
[1762488041676,0.48488,3342.9,3342.8,0.72059]
[1762488041867,0.48492,3342.7,3342.6,0.48491]
[1762488042069,0.48492,3342.7,3342.6,0.72061]
[1762488042772,0.48492,3342.7,3342.5,0.1443]
[1762488042773,0.48489,3342.8,3342.7,0.72058]
[1762488043770,0.3723,3342.5,3342.3,3.21007145]
[1762488043975,0.48495,3342.4,3342.3,0.23797145]
[1762488044474,0.71405,3342.4,3342.3,0.23797145]
[1762488044975,0.71405,3342.4,3342.3,0.72293145]
[1762488045174,0.71405,3342.4,3342.3,0.00227145]
[1762488049272,0.48495,3342.4,3342.3,0.23797145]
[1762488049473,0.62806,3343.0,3342.9,0.2357]
[1762488049773,0.48491,3342.7,3342.6,0.72061]
[1762488050877,0.48488,3343.0,3342.9,0.48486]
[1762488051073,0.48488,3343.0,3342.9,0.2357]
[1762488051275,0.48492,3342.6,3342.5,0.2357]